bitfinex/quotes_BTCUSD_20240827
["timestamp","ask_amount","ask_price","bid_price","bid_amount"]
[1724790421646,0.14650545,62097.0,62096.0,0.013]
[1724790422304,0.02607598,62097.0,62096.0,0.013]
[1724790422520,0.16857598,62097.0,62096.0,0.013]
[1724790423196,0.28904333,62097.0,62096.0,0.013]
[1724790423424,0.16857598,62097.0,62096.0,0.013]
[1724790425387,0.28908573,62097.0,62096.0,0.013]
[1724790425857,0.26408573,62097.0,62096.0,0.013]
[1724790426084,0.14357598,62097.0,62096.0,0.013]
[1724790426326,0.23973308,62097.0,62096.0,0.013]
[1724790426542,0.26498737,62097.0,62096.0,0.013]
[1724790426769,0.16857629,62097.0,62096.0,0.013]
[1724790427494,0.26499039,62097.0,62096.0,0.013]
[1724790427705,0.16857629,62097.0,62096.0,0.013]
[1724790427937,0.26499039,62097.0,62096.0,0.013]
[1724790428158,0.28908604,62097.0,62096.0,0.013]
[1724790428600,0.16857629,62097.0,62096.0,0.013]
[1724790429063,0.28908604,62097.0,62096.0,0.013]
[1724790429754,0.16857629,62097.0,62096.0,0.013]
[1724790430911,0.26500892,62097.0,62096.0,0.013]
[1724790431118,0.16857629,62097.0,62096.0,0.013]
[1724790431339,0.26500803,62097.0,62096.0,0.013]
[1724790431555,0.26500854,62097.0,62096.0,0.013]
[1724790432416,0.20280854,62097.0,62096.0,0.013]
[1724790432626,0.10637629,62097.0,62096.0,0.013]
[1724790432836,0.202808,62097.0,62096.0,0.013]
[1724790433474,0.10637629,62097.0,62096.0,0.013]
[1724790434118,0.10937631,62097.0,62096.0,0.013]
[1724790434968,0.10937631,62097.0,62096.0,0.0139042]
[1724790435392,0.20281153,62097.0,62096.0,0.0139042]
[1724790435624,0.10637629,62097.0,62096.0,0.0139042]
[1724790435844,0.22691395,62097.0,62096.0,0.0139042]
[1724790436286,0.14661395,62097.0,62096.0,0.0139042]
[1724790436512,0.12251635,62097.0,62096.0,0.03264899]
[1724790438587,0.02607629,62097.0,62096.0,0.03264899]
[1724790438797,0.14661395,62097.0,62096.0,0.03264899]
[1724790439017,0.02607629,62097.0,62096.0,0.03264899]
[1724790440321,0.02607629,62097.0,62096.0,0.11524899]
[1724790441146,0.14663758,62097.0,62096.0,0.11524899]
[1724790442210,0.14663758,62097.0,62096.0,0.18024899]
[1724790442410,0.14663758,62097.0,62096.0,0.34128899]
[1724790442411,0.02607629,62097.0,62096.0,0.34128899]
[1724790442622,0.09843046,62097.0,62096.0,0.66336999]
[1724790443020,0.09843046,62097.0,62096.0,0.98545099]
[1724790443251,0.02607629,62097.0,62096.0,1.01263005]
[1724790444160,0.02607629,62097.0,62096.0,1.00163005]
[1724790445085,0.02607629,62097.0,62096.0,1.01563005]
[1724790445326,0.02607629,62097.0,62096.0,1.33771105]
[1724790445549,0.02607629,62097.0,62096.0,1.32371105]
[1724790446484,0.000822,62097.0,62096.0,1.32371105]
[1724790446695,0.000822,62097.0,62096.0,1.36797273]
[1724790446912,0.000822,62097.0,62096.0,1.38197273]
[1724790447320,0.000822,62097.0,62096.0,1.36797348]
[1724790447729,0.000822,62097.0,62096.0,1.38197348]
[1724790448423,0.000822,62097.0,62096.0,1.35507863]
[1724790449122,0.02607283,62097.0,62096.0,1.35507863]
[1724790449535,0.02607283,62097.0,62096.0,1.03299763]
[1724790451462,0.000822,62097.0,62096.0,1.03299763]
[1724790453673,0.000822,62097.0,62096.0,0.22779563]
[1724790453946,0.000822,62097.0,62096.0,0.32186868]
[1724790454161,0.000822,62097.0,62096.0,0.33505766]
[1724790454605,0.000822,62097.0,62096.0,0.33923672]
[1724790457330,0.000822,62097.0,62096.0,0.32186868]
[1724790458887,0.000822,62097.0,62096.0,0.03564899]
[1724790459381,0.000822,62097.0,62096.0,0.0169042]
[1724790461455,0.02607402,62097.0,62096.0,0.0169042]
[1724790462155,0.02607402,62097.0,62096.0,0.12834483]
[1724790466386,0.02607402,62097.0,62096.0,0.03427331]
[1724790471369,0.02607402,62097.0,62096.0,0.03427329]
[1724790471587,0.02607402,62097.0,62096.0,0.0976673]
[1724790474847,0.02607402,62097.0,62096.0,0.08029821]
[1724790475056,0.02607402,62097.0,62096.0,0.0976673]
[1724790478373,0.02607402,62097.0,62096.0,0.08029821]
[1724790478612,0.02607402,62097.0,62096.0,0.0976673]
[1724790483575,0.02607402,62097.0,62096.0,0.03427325]
[1724790484216,0.02607402,62097.0,62096.0,0.0169042]
[1724790484425,0.02607402,62097.0,62096.0,0.03427324]
[1724790486592,0.07426923,62097.0,62096.0,0.03427324]
[1724790486825,0.07426923,62097.0,62096.0,0.11179694]
[1724790487689,0.07426923,62097.0,62096.0,0.0944279]
[1724790487904,0.07426923,62097.0,62096.0,0.11179693]
[1724790488758,0.07428999,62097.0,62096.0,0.11179693]
[1724790490414,0.02607402,62097.0,62096.0,0.1386941]
[1724790492141,0.02607402,62097.0,62096.0,0.11179693]
[1724790492390,0.09839797,62097.0,62096.0,0.27283693]
[1724790493440,0.09839797,62097.0,62096.0,0.11179693]
[1724790493885,0.09840973,62097.0,62096.0,0.03427323]
[1724790494097,0.26981882,62097.0,62096.0,0.03427323]
[1724790494318,0.17037402,62097.0,62096.0,0.0169042]
[1724790494533,0.29093353,62097.0,62096.0,0.0169042]
[1724790495001,0.29093353,62097.0,62096.0,0.0029042]
[1724790495623,0.29093353,62097.0,62096.0,0.0169042]
[1724790498826,0.29094278,62097.0,62096.0,0.0169042]
[1724790499490,0.29094278,62097.0,62096.0,0.02982899]
[1724790499491,0.26682075,62097.0,62096.0,0.02982899]
[1724790499945,0.26982077,62097.0,62096.0,0.04719843]
[1724790500152,0.26982077,62097.0,62096.0,0.02982899]
[1724790501006,0.26682075,62097.0,62096.0,0.02982899]
[1724790501443,0.26682075,62097.0,62096.0,0.04719843]
[1724790501659,0.26682075,62097.0,62096.0,0.02982899]
[1724790502279,0.26682075,62097.0,62096.0,0.04719843]
[1724790502501,0.26682075,62097.0,62096.0,0.02982899]
[1724790503369,0.26682075,62097.0,62096.0,0.04719843]
[1724790503588,0.26682075,62097.0,62096.0,0.02982899]
[1724790504717,0.26683784,62097.0,62096.0,0.02982899]
[1724790508744,0.26683529,62097.0,62096.0,0.02982899]
[1724790510257,0.02607402,62097.0,62096.0,0.02982899]
[1724790510495,0.02607402,62097.0,62096.0,1.05599492]
[1724790510720,0.02607402,62097.0,62096.0,1.40531629]
[1724790510721,0.000822,62097.0,62096.0,1.40531629]
[1724790510945,0.000822,62097.0,62096.0,1.4246885]
[1724790511182,0.000822,62097.0,62096.0,1.40531629]
[1724790511396,0.000822,62097.0,62096.0,1.39131629]
[1724790511620,0.000822,62097.0,62096.0,1.4536675]
[1724790512229,0.000822,62097.0,62096.0,1.4396675]
[1724790512451,0.000822,62097.0,62096.0,1.40531629]
[1724790512688,0.02606955,62097.0,62096.0,1.40531276]
[1724790512894,0.02606955,62097.0,62096.0,1.39131276]
[1724790513301,0.02606955,62097.0,62096.0,1.42843583]
[1724790514689,0.02606955,62097.0,62096.0,1.41443583]
[1724790515121,0.02606955,62097.0,62096.0,1.42843583]
[1724790515693,0.02606955,62097.0,62096.0,1.52843583]
[1724790515898,0.02606955,62097.0,62096.0,1.5284257]
[1724790516302,0.02606955,62097.0,62096.0,1.52842553]
[1724790518137,0.02606955,62097.0,62096.0,1.51632044]
[1724790519471,0.02606955,62097.0,62096.0,1.50118902]
[1724790519839,0.02606955,62097.0,62096.0,1.82327002]
[1724790520641,0.000822,62101.0,62100.0,1.27469206]
[1724790520818,0.000822,62101.0,62100.0,1.61335276]
[1724790521868,0.000822,62101.0,62100.0,1.62735276]
[1724790522272,0.000822,62101.0,62100.0,1.94941376]
[1724790522669,0.02606849,62101.0,62100.0,1.94941376]
[1724790523139,0.02606849,62101.0,62100.0,1.94941205]
[1724790525868,0.0755,62115.0,62114.0,0.482982]
[1724790526096,0.0629,62118.0,62117.0,0.160986]
[1724790526329,0.02524677,62119.0,62117.0,0.160986]
[1724790526330,0.02524677,62119.0,62118.0,0.160983]
[1724790526580,0.06982,62120.0,62118.0,0.160983]
[1724790526581,0.06982,62120.0,62119.0,0.160981]
[1724790526837,0.15032,62120.0,62119.0,0.804905]
[1724790527103,0.15032,62120.0,62119.0,0.93726567]
[1724790527567,0.15032,62120.0,62119.0,0.61530367]
[1724790528019,0.15032,62120.0,62119.0,0.62830367]
[1724790529160,0.11396364,62120.0,62119.0,0.63248273]
[1724790529372,0.08872,62120.0,62119.0,0.63248273]
[1724790530526,0.08872,62120.0,62119.0,0.31052073]
[1724790530991,0.11396375,62120.0,62119.0,0.17816006]
[1724790540386,0.11396375,62120.0,62119.0,0.19552316]
[1724790540880,0.11396375,62120.0,62119.0,0.03454216]
[1724790541097,0.08872,62120.0,62119.0,0.03454216]
[1724790543116,0.11396395,62120.0,62119.0,0.03454216]
[1724790544270,0.11396395,62120.0,62119.0,0.12963334]
[1724790547355,0.11396395,62120.0,62119.0,0.29061434]
[1724790547551,0.03346395,62120.0,62119.0,0.29061434]
[1724790548469,0.03346395,62120.0,62119.0,0.61257634]
[1724790550626,0.03346395,62120.0,62119.0,0.59521324]
[1724790550835,0.03346395,62120.0,62119.0,0.6125762]
[1724790552343,0.03346395,62120.0,62119.0,0.63946344]
[1724790552572,0.03346395,62120.0,62119.0,0.96142544]
[1724790554431,0.03346395,62120.0,62119.0,0.9440624]
[1724790554631,0.03346395,62120.0,62119.0,0.98831234]
[1724790554863,0.03346395,62120.0,62119.0,1.28338718]
[1724790555095,0.03346395,62120.0,62119.0,1.44888718]
[1724790555569,0.00822,62120.0,62119.0,1.44888718]
[1724790555793,0.00822,62120.0,62119.0,1.43588718]
[1724790556018,0.00822,62120.0,62119.0,1.44988718]
[1724790556241,0.00822,62120.0,62119.0,1.79907726]
[1724790556457,0.00822,62120.0,62119.0,1.78507726]
[1724790556874,0.00822,62120.0,62119.0,1.79907726]
[1724790557310,0.00822,62120.0,62119.0,1.78507726]
[1724790557994,0.00822,62120.0,62119.0,1.72872595]
[1724790558205,0.00822,62120.0,62119.0,1.78506846]
[1724790558621,0.00822,62120.0,62119.0,1.79906846]
[1724790559225,0.00822,62120.0,62119.0,1.78506846]
[1724790559444,0.00822,62120.0,62119.0,1.79906846]
[1724790560085,0.03346177,62120.0,62119.0,1.79906846]
[1724790561594,0.03346177,62120.0,62119.0,1.74272552]
[1724790561804,0.03346177,62120.0,62119.0,1.78394171]
[1724790562008,0.03346177,62120.0,62119.0,1.79906799]
[1724790562837,0.03346177,62120.0,62119.0,1.74272552]
[1724790563043,0.03346177,62120.0,62119.0,1.79906799]
[1724790563254,0.03346177,62120.0,62119.0,1.72059924]
[1724790563453,0.03346177,62120.0,62119.0,1.77996701]
[1724790563864,0.03446177,62120.0,62119.0,1.79396701]
[1724790564311,0.03446177,62120.0,62119.0,1.73459924]
[1724790565959,0.03446177,62120.0,62119.0,1.79396701]
[1724790566137,0.03446177,62120.0,62119.0,1.77884071]
[1724790566360,0.00922,62120.0,62119.0,1.77884071]
[1724790568547,0.00922,62120.0,62119.0,1.79396695]
[1724790569283,0.00922,62120.0,62119.0,1.77884071]
[1724790569481,0.000822,62128.0,62127.0,1.269223]
[1724790569700,0.000822,62128.0,62127.0,1.4479051]
[1724790569889,0.02606131,62128.0,62127.0,1.7698261]
[1724790570084,0.02606131,62128.0,62127.0,1.72558463]
[1724790570288,0.02606131,62128.0,62127.0,1.929789]
[1724790570490,0.02606131,62128.0,62127.0,1.92643045]
[1724790570780,0.02606131,62128.0,62127.0,1.94378899]
[1724790571000,0.02606131,62128.0,62127.0,2.0020279]
[1724790571212,0.02606131,62128.0,62127.0,1.98802789]
[1724790571441,0.02606131,62128.0,62127.0,2.01490826]
[1724790571688,0.00822,62135.0,62127.0,2.01490826]
[1724790571689,0.00822,62135.0,62134.0,1.23803463]
[1724790571905,0.00822,62135.0,62134.0,1.38358819]
[1724790572116,0.0334588,62135.0,62134.0,1.38358819]
[1724790573127,0.0334588,62135.0,62134.0,1.39758819]
[1724790573341,0.0334588,62135.0,62134.0,1.41158819]
[1724790573802,0.0334588,62135.0,62134.0,1.4115882]
[1724790575545,0.0334588,62135.0,62134.0,1.5524882]
[1724790575752,0.0334588,62135.0,62134.0,1.57592429]
[1724790576163,0.00822,62135.0,62134.0,1.57592429]
[1724790576628,0.00822,62135.0,62134.0,1.56192429]
[1724790577052,0.00822,62135.0,62134.0,1.54456575]
[1724790577280,0.00822,62135.0,62134.0,1.57592419]
[1724790577516,0.00822,62135.0,62134.0,1.55856575]
[1724790577717,0.00822,62135.0,62134.0,1.58880292]
[1724790579231,0.00822,62135.0,62134.0,1.60280292]
[1724790579487,0.03345702,62135.0,62134.0,1.58880292]
[1724790579984,0.03345702,62135.0,62134.0,1.60280292]
[1724790580513,0.00822,62135.0,62134.0,1.60280081]
[1724790582562,0.03345661,62135.0,62134.0,1.60280081]
[1724790583834,0.03345661,62135.0,62134.0,1.35046018]
[1724790584054,0.03345661,62135.0,62134.0,1.09578175]
[1724790584264,0.11295661,62135.0,62134.0,1.14001616]
[1724790585072,0.11295661,62135.0,62134.0,1.12601616]
[1724790585487,0.11295661,62135.0,62134.0,1.14001616]
[1724790587319,0.11295661,62135.0,62134.0,1.14001916]
[1724790590687,0.11295661,62135.0,62134.0,1.09578175]
[1724790591027,0.11295661,62135.0,62134.0,1.1400178]
[1724790592579,0.11295661,62135.0,62134.0,1.4619018]
[1724790595004,0.2,62139.0,62138.0,0.80466]
[1724790595005,0.2763,62139.0,62138.0,0.80466]
[1724790595234,0.2763,62139.0,62138.0,1.10370346]
[1724790595651,0.30153688,62139.0,62138.0,1.10370346]
[1724790595839,0.22523688,62139.0,62138.0,1.42556746]
[1724790596276,0.2,62139.0,62138.0,1.43956746]
[1724790596516,0.2,62139.0,62138.0,1.45356746]
[1724790600712,0.2,62139.0,62138.0,1.4535659]
[1724790601165,0.2,62139.0,62138.0,1.02026127]
[1724790601166,0.36523489,62139.0,62138.0,1.02026127]
[1724790602333,0.36523489,62139.0,62138.0,1.1317019]
[1724790602818,0.36523489,62139.0,62138.0,0.8098379]
[1724790603078,0.36523489,62139.0,62138.0,0.21560127]
[1724790603302,0.36605589,62139.0,62138.0,0.04535684]
[1724790603541,0.36605589,62139.0,62138.0,0.028]
[1724790604020,0.36605589,62139.0,62138.0,0.014]
[1724790604241,0.0831,62135.0,62132.0,0.160946]
[1724790604491,0.0831,62135.0,62133.0,0.1114817]
[1724790604492,0.0623,62134.0,62133.0,0.1114817]
[1724790604721,0.1454,62134.0,62133.0,0.1114817]
[1724790604972,0.14840002,62134.0,62133.0,0.01735937]
[1724790605496,0.1454,62133.0,62128.0,0.0009031]
[1724790605739,0.05118627,62134.0,62129.0,0.01736075]
[1724790605740,0.0623,62131.0,62129.0,0.01736075]
[1724790605978,0.08610002,62130.0,62128.0,0.0009031]
[1724790606195,0.1454,62129.0,62128.0,0.0009031]
[1724790606413,0.1454,62129.0,62128.0,0.0182639]
[1724790606669,0.1454,62129.0,62128.0,0.08195578]
[1724790607785,0.1454,62129.0,62128.0,0.09595578]
[1724790607970,0.1454,62129.0,62128.0,0.10995578]
[1724790608417,0.1454,62129.0,62128.0,0.09595578]
[1724790608865,0.1454,62129.0,62128.0,0.10995578]
[1724790609133,0.1454,62129.0,62128.0,0.25355298]
[1724790609387,0.1454,62129.0,62128.0,0.10995578]
[1724790609621,0.1454,62129.0,62128.0,0.09259498]
[1724790609864,0.1454,62129.0,62128.0,0.25355298]
[1724790610120,0.02523813,62131.0,62130.0,0.160952]
[1724790610357,0.02523813,62131.0,62130.0,0.63854013]
[1724790610594,0.02523813,62131.0,62130.0,0.96044513]
[1724790611021,0.02523813,62131.0,62130.0,0.98344513]
[1724790611232,0.02523813,62131.0,62130.0,0.99744513]
[1724790611443,0.02523813,62131.0,62130.0,1.16308962]
[1724790612431,0.02523813,62131.0,62130.0,1.16308585]
[1724790614290,0.02523813,62131.0,62130.0,1.48499085]
[1724790614531,0.02523813,62131.0,62130.0,1.56719085]
[1724790615022,0.02523813,62131.0,62130.0,1.48499085]
[1724790615675,0.02523813,62131.0,62130.0,1.50999172]
[1724790616335,0.1437,62138.0,62137.0,0.482803]
[1724790616564,0.1437,62138.0,62137.0,0.69206985]
[1724790617048,0.005,62134.0,62130.0,0.0289031]
[1724790617300,0.005,62134.0,62130.0,0.0149031]
[1724790617301,0.30389933,62131.0,62130.0,0.0149031]
[1724790617555,0.78859063,62131.0,62130.0,0.0009031]
[1724790617822,1.70494721,62131.0,62130.0,0.0009031]
[1724790618110,1.22759123,62129.0,62128.0,0.0009031]
[1724790618277,1.22759123,62129.0,62096.0,0.48280054]
[1724790618278,0.0753,62114.0,62096.0,0.48280054]
[1724790618531,0.04809109,62110.0,62096.0,0.48280054]
[1724790618777,0.04809109,62110.0,62096.0,0.0029042]
[1724790618778,0.05609111,62109.0,62096.0,0.0029042]
[1724790618975,0.05609111,62109.0,62096.0,0.1639432]
[1724790618976,0.1393,62105.0,62096.0,0.1639432]
[1724790619176,0.00300002,62104.0,62096.0,0.0029042]
[1724790620233,0.00300002,62104.0,62101.0,0.0149042]
[1724790620448,0.00300002,62104.0,62101.0,0.0009042]
[1724790620898,0.00300002,62104.0,62101.0,0.0149042]
[1724790621110,0.00300002,62104.0,62101.0,0.0289042]
[1724790621525,0.00300002,62104.0,62101.0,0.04827946]
[1724790625370,0.00300002,62104.0,62101.0,0.0289042]
[1724790631319,0.1393,62105.0,62101.0,0.0289042]
[1724790631554,0.0753,62105.0,62101.0,0.0289042]
[1724790631771,0.0753,62105.0,62102.0,0.161023]
[1724790632610,0.0753,62105.0,62102.0,0.161025]
[1724790632611,0.00300002,62104.0,62102.0,0.161025]
[1724790633058,0.00300002,62104.0,62102.0,0.175025]
[1724790633685,0.00300002,62104.0,62102.0,0.161025]
[1724790634110,0.00300002,62104.0,62102.0,0.189025]
[1724790636788,0.00300002,62104.0,62102.0,0.028]
[1724790636991,0.02525097,62108.0,62102.0,0.028]
[1724790637192,0.00300002,62107.0,62102.0,0.028]
[1724790637625,0.00300002,62107.0,62102.0,0.189025]
[1724790637847,0.00300002,62107.0,62102.0,0.175025]
[1724790638315,0.00300002,62107.0,62102.0,0.028]
[1724790638530,0.00300002,62107.0,62102.0,0.0289031]
[1724790639004,0.00300002,62107.0,62102.0,0.0149031]
[1724790639222,0.00300002,62107.0,62102.0,0.0289031]
[1724790639668,0.00300002,62107.0,62102.0,0.0149031]
[1724790640340,0.00300002,62107.0,62103.0,0.04998005]
[1724790641579,0.02525097,62108.0,62107.0,0.161012]
[1724790641784,0.02525097,62108.0,62107.0,0.483036]
[1724790643019,0.02525097,62108.0,62107.0,0.497036]
[1724790643427,0.02525097,62108.0,62107.0,0.175012]
[1724790643602,0.02525097,62108.0,62107.0,0.189012]
[1724790643858,0.02525097,62108.0,62107.0,0.161012]
[1724790644438,0.02525097,62108.0,62107.0,0.175012]
[1724790644866,0.02525097,62108.0,62107.0,0.161012]
[1724790645823,0.02525097,62108.0,62107.0,0.175012]
[1724790646406,0.02525097,62108.0,62107.0,0.189012]
[1724790646607,0.02525097,62108.0,62107.0,0.511036]
[1724790650515,0.02525097,62108.0,62107.0,0.028]
[1724790650716,0.02525097,62108.0,62107.0,0.189012]
[1724790652585,0.02525097,62108.0,62107.0,0.028]
[1724790652821,0.17075097,62108.0,62107.0,0.028]
[1724790653957,0.02525097,62108.0,62107.0,0.04699251]
[1724790654414,0.02525097,62108.0,62107.0,0.028]
[1724790663716,0.02525097,62108.0,62107.0,0.189012]
[1724790663933,0.02525097,62108.0,62107.0,0.511036]
[1724790664349,0.02525097,62108.0,62107.0,0.5119391]
[1724790665272,0.07217649,62109.0,62108.0,0.483028]
[1724790665476,0.07217649,62109.0,62108.0,0.92827091]
[1724790665916,0.07217649,62109.0,62108.0,0.86457091]
[1724790666120,0.04816343,62110.0,62109.0,0.322014]
[1724790666337,0.04816343,62112.0,62111.0,0.161002]
[1724790666618,0.04816343,62113.0,62111.0,0.161002]
[1724790667523,0.04816343,62113.0,62111.0,0.175002]
[1724790668642,0.04816343,62113.0,62111.0,0.161002]
[1724790669041,0.04816343,62113.0,62111.0,0.175002]
[1724790669263,0.04816343,62113.0,62111.0,0.014]
[1724790669422,0.04816343,62113.0,62111.0,0.028]
[1724790669890,0.09628636,62112.0,62111.0,0.028]
[1724790671331,0.07224426,62112.0,62111.0,0.028]
[1724790671558,0.07224426,62113.0,62111.0,0.028]
[1724790671759,0.04816019,62112.0,62111.0,0.028]
[1724790671963,0.04816019,62112.0,62111.0,0.014]
[1724790672338,0.04816019,62112.0,62111.0,0.028]
[1724790672542,0.04816019,62112.0,62111.0,0.014]
[1724790672724,0.04816019,62112.0,62111.0,0.028]
[1724790675411,0.0481524,62112.0,62111.0,0.028]
[1724790677205,0.07224426,62113.0,62111.0,0.028]
[1724790677609,0.07223786,62113.0,62111.0,0.028]
[1724790678060,0.07223786,62113.0,62111.0,0.014]
[1724790678520,0.07223786,62113.0,62111.0,0.028]
[1724790678755,0.00300002,62112.0,62111.0,0.028]
[1724790678985,0.17891717,62112.0,62111.0,0.028]
[1724790679219,0.08260002,62112.0,62111.0,0.028]
[1724790679443,0.08260002,62112.0,62111.0,0.014]
[1724790680109,0.08260002,62112.0,62107.0,0.0009031]
[1724790680332,0.0481572,62108.0,62107.0,0.0009031]
[1724790682133,0.0481572,62108.0,62107.0,0.0149031]
[1724790682555,0.0481572,62108.0,62107.0,0.0289031]
[1724790683175,0.0481572,62108.0,62107.0,0.0149031]
[1724790683392,0.0481572,62108.0,62107.0,0.0289031]
[1724790683947,0.0481572,62108.0,62107.0,0.1899151]
[1724790684154,0.0481572,62108.0,62107.0,0.29913328]
[1724790685176,0.0722358,62109.0,62107.0,0.29913328]
[1724790686128,0.0722358,62109.0,62107.0,0.28513328]
[1724790686681,0.0722358,62109.0,62107.0,0.1899151]
[1724790687277,0.0722358,62109.0,62108.0,0.161009]
[1724790687491,0.07225689,62109.0,62108.0,0.461919]
[1724790687700,0.14451379,62117.0,62112.0,0.0772]
[1724790687701,0.0481758,62117.0,62112.0,0.0772]
[1724790687901,0.0481758,62118.0,62116.0,0.160987]
[1724790688104,0.07225689,62120.0,62116.0,0.160987]
[1724790688105,0.0481758,62120.0,62117.0,0.0772]
[1724790688309,0.0481758,62120.0,62114.0,0.0627]
[1724790688310,0.0481758,62121.0,62120.0,0.160978]
[1724790688513,0.09634253,62124.0,62120.0,0.160978]
[1724790688514,0.0481758,62124.0,62120.0,0.461857]
[1724790688692,0.0481758,62125.0,62123.0,0.11137656]
[1724790688899,0.0481758,62125.0,62124.0,0.160968]
[1724790689099,0.0481758,62126.0,62124.0,0.26658336]
[1724790689306,0.0481758,62126.0,62125.0,0.11137656]
[1724790689474,0.000821,62127.0,62125.0,0.11137656]
[1724790690060,0.000821,62127.0,62124.0,0.26658336]
[1724790690460,0.02606286,62127.0,62124.0,0.26658336]
[1724790690665,0.02606286,62127.0,62125.0,0.11903924]
[1724790690868,0.02606286,62127.0,62126.0,0.885415]
[1724790691069,0.02606286,62127.0,62126.0,0.949615]
[1724790691808,0.02606286,62127.0,62126.0,0.627689]
[1724790692352,0.02606286,62127.0,62126.0,0.641689]
[1724790692589,0.02606286,62127.0,62126.0,0.80165445]
[1724790694444,0.02606286,62127.0,62126.0,1.12358045]
[1724790694613,0.02606286,62127.0,62126.0,1.14658045]
[1724790694818,0.02606286,62127.0,62126.0,1.49538465]
[1724790694995,0.02606286,62127.0,62126.0,1.50938465]
[1724790695621,0.02606286,62127.0,62126.0,1.49538465]
[1724790696242,0.000821,62127.0,62126.0,1.49538465]
[1724790696397,0.000821,62127.0,62126.0,1.48250645]
[1724790697652,0.000821,62127.0,62126.0,1.46850645]
[1724790698069,0.000821,62127.0,62126.0,1.48250645]
[1724790698274,0.000821,62127.0,62126.0,1.49986234]
[1724790699451,0.02605882,62127.0,62126.0,1.49986234]
[1724790700018,0.02605882,62127.0,62126.0,1.48250645]
[1724790700219,0.02605882,62127.0,62126.0,1.49986234]
[1724790705257,0.000821,62127.0,62126.0,1.03313634]
[1724790705458,0.000821,62127.0,62126.0,1.01578045]
[1724790706941,0.02606015,62127.0,62126.0,1.01578045]
[1724790709751,0.02606015,62127.0,62126.0,0.028]
[1724790710363,0.02606015,62127.0,62126.0,0.188963]
[1724790710607,0.02606015,62127.0,62126.0,0.028]
[1724790710934,0.02606015,62127.0,62126.0,0.188963]
[1724790711294,0.02606015,62127.0,62126.0,0.1898661]
[1724790711486,0.02606015,62127.0,62126.0,0.27332992]
[1724790715711,0.02606015,62127.0,62126.0,0.59525592]
[1724790716973,0.02606015,62127.0,62126.0,0.27332992]
[1724790717377,0.02606015,62127.0,62126.0,0.59525592]
[1724790717620,0.02606015,62127.0,62126.0,0.61261459]
[1724790719055,0.02606015,62127.0,62126.0,1.07474059]
[1724790719260,0.02606015,62127.0,62126.0,0.99514059]
[1724790719704,0.02606015,62127.0,62126.0,0.93454059]
[1724790720141,0.02606015,62127.0,62126.0,0.91718192]
[1724790720295,0.02606015,62127.0,62126.0,0.93454058]
[1724790721478,0.02606015,62127.0,62126.0,0.61261458]
[1724790722097,0.02606015,62127.0,62126.0,0.93454058]
[1724790722313,0.02606015,62127.0,62126.0,0.61261458]
[1724790722762,0.16386015,62127.0,62126.0,0.27332992]
[1724790722993,0.16386015,62127.0,62126.0,0.29068858]
[1724790723214,0.10326015,62127.0,62126.0,0.29068858]
[1724790725022,0.10326015,62127.0,62126.0,0.61261458]
[1724790725651,0.10326015,62127.0,62126.0,0.29068858]
[1724790726334,0.10326015,62127.0,62126.0,0.2906886]
[1724790726546,0.10326015,62127.0,62126.0,0.6126146]
[1724790727525,0.10326015,62127.0,62126.0,0.2906886]
[1724790728328,0.10326015,62127.0,62126.0,0.20722478]
[1724790728535,0.10326015,62127.0,62126.0,0.0289031]
[1724790728735,0.16666015,62127.0,62126.0,0.0289031]
[1724790734421,0.16666015,62127.0,62126.0,0.04626225]
[1724790737336,0.16666015,62127.0,62126.0,0.045814]
[1724790737551,0.16666015,62127.0,62126.0,0.09877691]
[1724790738527,0.16636015,62127.0,62126.0,0.045814]
[1724790738726,0.16636015,62127.0,62126.0,0.02845485]
[1724790743680,0.16936017,62127.0,62126.0,0.02845485]
[1724790744132,0.26555956,62127.0,62126.0,0.02845485]
[1724790744338,0.16936017,62127.0,62126.0,0.02845485]
[1724790746931,0.17436017,62127.0,62126.0,0.02845485]
[1724790747138,0.65724117,62127.0,62126.0,0.02845485]
[1724790747360,0.33532017,62127.0,62126.0,0.02845485]
[1724790747949,0.33532017,62127.0,62126.0,0.0149031]
[1724790748135,0.33532017,62127.0,62126.0,0.0279031]
[1724790748945,0.33532017,62127.0,62126.0,0.0139031]
[1724790749188,0.33532017,62127.0,62126.0,0.0279031]
[1724790749417,0.33532017,62127.0,62126.0,0.0009031]
[1724790750012,0.17436017,62127.0,62126.0,0.0009031]
[1724790750180,0.16936017,62127.0,62126.0,0.0109031]
[1724790750583,0.16936017,62127.0,62126.0,0.0209031]
[1724790751022,0.16936017,62127.0,62126.0,0.0109031]
[1724790751275,0.16936017,62127.0,62126.0,0.0209031]
[1724790751478,0.2656288,62127.0,62126.0,0.0209031]
[1724790751662,0.16936017,62127.0,62126.0,0.0109031]
[1724790751861,0.16936017,62127.0,62126.0,0.0009031]
[1724790752036,0.16936017,62127.0,62126.0,0.0139031]
[1724790752240,0.16936017,62127.0,62126.0,0.0269031]
[1724790754503,0.26558424,62127.0,62126.0,0.0269031]
[1724790756691,0.26558662,62127.0,62126.0,0.0269031]
[1724790759511,0.26558663,62127.0,62126.0,0.0269031]
[1724790762808,0.12228661,62127.0,62126.0,0.0269031]
[1724790763036,0.09823691,62127.0,62126.0,0.07143422]
[1724790763242,0.02606015,62127.0,62126.0,0.07143422]
[1724790766149,0.09823709,62127.0,62126.0,0.07143422]
[1724790766583,0.17593709,62127.0,62126.0,0.0269031]
[1724790766806,0.23733709,62127.0,62126.0,0.0269031]
[1724790767027,0.24033711,62127.0,62126.0,0.0269031]
[1724790769277,0.16816017,62127.0,62126.0,0.0269031]
[1724790769494,0.23735775,62127.0,62126.0,0.0269031]
[1724790769703,0.16516015,62127.0,62126.0,0.0269031]
[1724790769936,0.16816017,62127.0,62126.0,0.0269031]
[1724790770278,0.10676017,62127.0,62126.0,0.0269031]
[1724790773566,0.20302858,62127.0,62126.0,0.0269031]
[1724790774023,0.07420454,62127.0,62126.0,0.0893031]
[1724790774248,0.07420454,62127.0,62126.0,0.18176211]
[1724790774495,0.02606015,62127.0,62126.0,0.37957654]
[1724790775044,0.02606015,62127.0,62126.0,0.20561354]
[1724790775662,0.02606015,62127.0,62126.0,0.36657654]
[1724790776059,0.02606015,62127.0,62126.0,0.35357654]
[1724790776402,0.02606015,62127.0,62126.0,0.38057654]
[1724790776669,0.02606015,62127.0,62126.0,0.36657654]
[1724790776875,0.02606015,62127.0,62126.0,0.35357654]
[1724790777093,0.02606015,62127.0,62126.0,0.36757654]
[1724790777298,0.02606015,62127.0,62126.0,0.38157654]
[1724790778183,0.02606015,62127.0,62126.0,0.36421753]
[1724790778403,0.02606015,62127.0,62126.0,0.38157621]
[1724790780465,0.02606015,62127.0,62126.0,0.70350221]